bitfinex/quotes_BTCUSD_20241002
["timestamp","ask_amount","ask_price","bid_price","bid_amount"]
[1727903864754,0.64075261,60857.0,60856.0,0.001817]
[1727903864976,0.30712763,60857.0,60856.0,0.000817]
[1727903865192,0.41528763,60857.0,60856.0,0.000817]
[1727903865406,0.49394139,60857.0,60856.0,0.000817]
[1727903865869,0.36574059,60857.0,60856.0,0.000817]
[1727903866106,0.50318297,60857.0,60856.0,0.001817]
[1727903866319,0.31606921,60857.0,60856.0,0.001817]
[1727903866537,0.30706921,60857.0,60856.0,0.000817]
[1727903866777,0.30906921,60857.0,60856.0,0.000817]
[1727903867041,0.38572297,60857.0,60856.0,0.000817]
[1727903867274,0.31206921,60857.0,60856.0,0.000817]
[1727903867497,0.31406921,60857.0,60856.0,0.000817]
[1727903867714,0.42022921,60857.0,60856.0,0.000817]
[1727903867927,0.83152264,60857.0,60856.0,0.000817]
[1727903868204,0.91057664,60857.0,60856.0,0.000817]
[1727903868419,0.91857664,60857.0,60856.0,0.001817]
[1727903868853,0.83693721,60857.0,60856.0,0.000817]
[1727903869070,1.00012392,60857.0,60856.0,0.000817]
[1727903869290,1.06074517,60857.0,60856.0,0.000817]
[1727903869513,0.91449256,60857.0,60856.0,0.000817]
[1727903869737,0.91814074,60857.0,60856.0,0.000817]
[1727903869954,0.83689801,60857.0,60856.0,0.000817]
[1727903870172,0.8910232,60857.0,60856.0,0.001817]
[1727903870415,1.00608472,60857.0,60856.0,0.001817]
[1727903870656,1.05419184,60857.0,60856.0,0.001817]
[1727903870873,1.00608472,60857.0,60856.0,0.001817]
[1727903871341,1.00608472,60857.0,60856.0,0.000817]
[1727903871558,1.00008472,60857.0,60856.0,0.000817]
[1727903871776,1.06117192,60857.0,60856.0,0.001817]
[1727903872236,0.99486072,60857.0,60856.0,0.001817]
[1727903872673,0.98187103,60857.0,60856.0,0.000817]
[1727903872889,0.99387103,60857.0,60856.0,0.000817]
[1727903873374,0.99587103,60857.0,60856.0,0.000817]
[1727903873589,0.87457803,60857.0,60856.0,0.000817]
[1727903873812,0.70486081,60857.0,60856.0,0.000817]
[1727903874035,0.58427432,60857.0,60856.0,0.000817]
[1727903874254,0.47909365,60857.0,60856.0,0.000817]
[1727903874489,0.46509365,60857.0,60856.0,0.000817]
[1727903874694,0.24330009,60857.0,60856.0,0.000817]
[1727903874951,0.19427249,60857.0,60856.0,0.000817]
[1727903875176,0.18127249,60857.0,60856.0,0.000817]
[1727903875416,0.18627249,60857.0,60856.0,0.000817]
[1727903875641,0.21204026,60857.0,60856.0,0.000817]
[1727903875921,0.29508677,60857.0,60856.0,0.000817]
[1727903876143,0.31203593,60857.0,60856.0,0.000817]
[1727903876582,0.30703593,60857.0,60856.0,0.000817]
[1727903876800,0.53534793,60857.0,60856.0,0.000817]
[1727903877682,0.53634793,60857.0,60856.0,0.000817]
[1727903878322,0.53834793,60857.0,60856.0,0.000817]
[1727903879015,0.50584793,60857.0,60856.0,0.000817]
[1727903879234,0.31009029,60857.0,60856.0,0.000817]
[1727903879685,0.41272929,60857.0,60856.0,0.000817]
[1727903879927,0.4127355,60857.0,60856.0,0.000817]
[1727903881487,0.55969813,60857.0,60856.0,0.000817]
[1727903881715,0.55969813,60857.0,60856.0,1e-06]
[1727903881716,0.60743047,60857.0,60856.0,1e-06]
[1727903881943,0.73036599,60857.0,60856.0,1e-06]
[1727903882132,0.60780652,60857.0,60856.0,1e-06]
[1727903882455,0.73031602,60857.0,60856.0,1e-06]
[1727903882696,0.79801767,60857.0,60856.0,1e-06]
[1727903882921,1.37607954,60857.0,60856.0,1e-06]
[1727903883119,1.22900817,60857.0,60856.0,1e-06]
[1727903883594,1.22900817,60857.0,60841.0,0.24623062]
[1727903883595,0.26636,60842.0,60841.0,0.24623062]
[1727903883820,3.99623042,60842.0,60841.0,0.06026769]
[1727903884048,3.99623042,60842.0,60833.0,0.24623062]
[1727903884049,0.264381,60834.0,60833.0,0.24623062]
[1727903884297,1.94673202,60834.0,60833.0,0.24623062]
[1727903884527,1.94673202,60834.0,60823.0,0.24623062]
[1727903884528,0.266387,60832.0,60823.0,0.24623062]
[1727903884775,2.31227642,60832.0,60823.0,0.24623062]
[1727903885012,2.31227642,60832.0,60831.0,1e-06]
[1727903885235,2.47546313,60832.0,60831.0,1e-06]
[1727903885690,2.55019686,60832.0,60831.0,1e-06]
[1727903885933,2.53924577,60832.0,60831.0,1e-06]
[1727903886156,2.74758045,60832.0,60831.0,1e-06]
[1727903886393,0.5724934,60832.0,60831.0,1e-06]
[1727903886613,4.34798203,60832.0,60831.0,1e-06]
[1727903886835,4.36114468,60832.0,60831.0,1e-06]
[1727903887058,4.04107315,60832.0,60831.0,1e-06]
[1727903887304,3.14139335,60832.0,60831.0,1e-06]
[1727903887546,3.15857483,60832.0,60831.0,1e-06]
[1727903887774,2.95338812,60832.0,60831.0,1e-06]
[1727903887998,0.32135112,60832.0,60831.0,1e-06]
[1727903888219,0.40345112,60832.0,60831.0,1e-06]
[1727903888455,0.30345112,60832.0,60831.0,1e-06]
[1727903888708,0.30545112,60832.0,60831.0,1e-06]
[1727903888970,1.23145173,60832.0,60831.0,1e-06]
[1727903889222,1.16985573,60832.0,60831.0,1e-06]
[1727903889494,1.18385573,60832.0,60831.0,1e-06]
[1727903889750,1.25163873,60832.0,60831.0,1e-06]
[1727903890010,1.26563873,60832.0,60831.0,1e-06]
[1727903890265,1.25363873,60832.0,60831.0,1e-06]
[1727903890537,1.26363873,60832.0,60831.0,1e-06]
[1727903890775,1.27763873,60832.0,60831.0,1e-06]
[1727903891011,1.26563873,60832.0,60831.0,1e-06]
[1727903891251,1.27863873,60832.0,60831.0,1e-06]
[1727903891492,1.27859307,60832.0,60831.0,1e-06]
[1727903891767,0.43040546,60832.0,60831.0,1e-06]
[1727903892033,0.54088346,60832.0,60831.0,1e-06]
[1727903892304,0.43040546,60832.0,60831.0,1e-06]
[1727903892543,0.38940546,60832.0,60831.0,1e-06]
[1727903892836,0.41440546,60832.0,60831.0,1e-06]
[1727903893101,0.41440546,60832.0,60831.0,0.078401]
[1727903893102,0.30040546,60832.0,60831.0,0.078401]
[1727903893578,0.28940546,60832.0,60831.0,0.078401]
[1727903893896,0.36331846,60832.0,60831.0,0.078401]
[1727903894097,0.37631846,60832.0,60831.0,0.078401]
[1727903894377,0.40240546,60832.0,60831.0,0.078401]
[1727903894667,0.40240546,60832.0,60831.0,0.173601]
[1727903894668,0.28526964,60832.0,60831.0,0.173601]
[1727903894930,0.3023219,60832.0,60831.0,0.173601]
[1727903895222,0.1379349,60832.0,60831.0,0.33799]
[1727903895438,0.0249349,60832.0,60831.0,0.33799]
[1727903895706,0.0249349,60832.0,60831.0,0.33899]
[1727903895960,0.01805226,60832.0,60831.0,0.33899]
[1727903896188,0.01705226,60832.0,60831.0,0.173601]
[1727903896442,0.01705226,60832.0,60831.0,0.33999]
[1727903896443,0.01805226,60832.0,60831.0,0.33999]
[1727903896661,0.01905226,60832.0,60831.0,0.33999]
[1727903897427,0.02695226,60832.0,60831.0,0.33999]
[1727903897908,0.02686122,60832.0,60831.0,0.33999]
[1727903898438,0.04382214,60832.0,60831.0,0.33999]
[1727903899096,0.06959463,60832.0,60831.0,0.33999]
[1727903899371,0.05263341,60832.0,60831.0,0.33999]
[1727903901193,0.24623062,60838.0,60837.0,0.242273]
[1727903901632,0.164364,60841.0,60837.0,0.242273]
[1727903902066,0.164367,60840.0,60837.0,0.0779]
[1727903902294,0.328724,60842.0,60837.0,0.0779]
[1727903902295,0.16437,60838.0,60837.0,0.0779]
[1727903902513,0.16537,60838.0,60837.0,0.0779]
[1727903902745,0.16437,60838.0,60837.0,0.0779]
[1727903902979,0.16437,60838.0,60837.0,0.0789]
[1727903903416,0.32872,60842.0,60831.0,0.075501]
[1727903903638,0.164387,60832.0,60831.0,0.075501]
[1727903905503,0.164387,60832.0,60831.0,0.082501]
[1727903905504,0.165387,60832.0,60831.0,0.082501]
[1727903905935,0.19116069,60832.0,60831.0,0.082501]
[1727903906398,0.19216069,60832.0,60831.0,0.082501]
[1727903906873,0.02777369,60832.0,60831.0,0.082501]
[1727903907558,0.02677369,60832.0,60831.0,0.082501]
[1727903908017,0.02577369,60832.0,60831.0,0.23989]
[1727903908464,0.02677369,60832.0,60831.0,0.24689]
[1727903908911,0.02677369,60832.0,60831.0,0.23989]
[1727903909135,0.02777369,60832.0,60831.0,0.24789]
[1727903909790,0.02777369,60832.0,60831.0,0.33789]
[1727903910014,0.003,60832.0,60831.0,0.34389]
[1727903912401,0.167387,60832.0,60831.0,0.179501]
[1727903912852,0.167387,60832.0,60831.0,0.34389]
[1727903912853,0.003,60832.0,60831.0,0.34389]
[1727903913068,0.02014086,60832.0,60831.0,0.34389]
[1727903914002,0.001636,60838.0,60837.0,0.333973]
[1727903914231,0.24786662,60838.0,60837.0,0.333973]
[1727903914479,0.001636,60838.0,60837.0,0.333973]
[1727903915872,0.002636,60838.0,60837.0,0.341973]
[1727903916091,0.002636,60838.0,60837.0,0.347973]
[1727903916092,0.003636,60838.0,60837.0,0.347973]
[1727903921202,0.003636,60838.0,60837.0,0.676713]
[1727903925377,0.24623062,60854.0,60853.0,0.34143]
[1727903925594,0.26328131,60854.0,60853.0,0.67009]
[1727903926048,0.0342027,60854.0,60853.0,0.67009]
[1727903926494,0.0342027,60854.0,60853.0,0.41076]
[1727903926707,0.0342027,60854.0,60853.0,0.41576]
[1727903926918,0.0342027,60854.0,60853.0,0.33366]
[1727903926919,0.1985297,60854.0,60853.0,0.33366]
[1727903927130,0.1985297,60854.0,60853.0,0.32866]
[1727903927612,0.164327,60854.0,60853.0,0.32866]
[1727903927871,0.19853458,60854.0,60853.0,0.32866]
[1727903928075,0.19853458,60854.0,60853.0,0.33166]
[1727903928495,0.19853458,60854.0,60853.0,0.33666]
[1727903928715,0.19853458,60854.0,60853.0,0.33166]
[1727903929152,0.19853458,60854.0,60853.0,0.33766]
[1727903931104,0.19859629,60854.0,60853.0,0.33766]
[1727903931353,0.21570759,60854.0,60853.0,0.33766]
[1727903931843,0.05138059,60854.0,60853.0,0.33766]
[1727903932049,0.21570759,60854.0,60853.0,0.33766]
[1727903932263,0.05138059,60854.0,60853.0,0.33766]
[1727903932897,0.21570759,60854.0,60853.0,0.33766]
[1727903934624,0.19866564,60854.0,60853.0,0.33766]
[1727903934840,0.21570852,60854.0,60853.0,0.33766]
[1727903935483,0.05138152,60854.0,60853.0,0.33766]
[1727903935718,0.05138152,60854.0,60853.0,0.58409]
[1727903935929,0.05138152,60854.0,60853.0,0.41976]
[1727903936141,0.05138152,60854.0,60853.0,0.58409]
[1727903936575,0.05138152,60854.0,60853.0,0.41976]
[1727903937219,0.03433864,60854.0,60853.0,0.41976]
[1727903937434,0.19866564,60854.0,60853.0,0.33766]
[1727903938756,0.21587782,60854.0,60853.0,0.33766]
[1727903938975,0.19865048,60854.0,60853.0,0.33766]
[1727903939630,0.18153918,60854.0,60853.0,0.33766]
[1727903940938,0.18159094,60854.0,60853.0,0.33766]
[1727903943593,0.56980368,60854.0,60853.0,0.33766]
[1727903943827,1.32140079,60854.0,60853.0,0.33766]
[1727903944076,1.72553768,60854.0,60853.0,0.33766]
[1727903944325,1.43828068,60854.0,60853.0,0.33466]
[1727903944568,1.43628068,60854.0,60853.0,0.32866]
[1727903944824,1.40752568,60854.0,60853.0,0.32966]
[1727903945055,1.40915968,60854.0,60853.0,0.32966]
[1727903945289,1.40915968,60854.0,60853.0,0.33066]
[1727903945290,1.08128968,60854.0,60853.0,0.33066]
[1727903945556,0.99341368,60854.0,60853.0,0.33066]
[1727903945779,1.26800538,60854.0,60853.0,0.33066]
[1727903945987,1.13801368,60854.0,60853.0,0.33066]
[1727903946446,1.07171368,60854.0,60853.0,0.141228]
[1727903946661,1.07171368,60854.0,60853.0,0.142228]
[1727903946884,1.07169901,60854.0,60853.0,0.142228]
[1727903947336,1.05442009,60854.0,60853.0,0.142228]
[1727903947546,1.05961341,60854.0,60853.0,0.140228]
[1727903947759,1.24599255,60854.0,60853.0,0.141228]
[1727903947977,1.24599255,60854.0,60853.0,0.139228]
[1727903948185,1.24599255,60854.0,60853.0,0.140228]
[1727903948396,1.25199255,60854.0,60853.0,0.141228]
[1727903948856,0.60337484,60854.0,60853.0,0.141228]
[1727903949073,0.72047984,60854.0,60853.0,0.140228]
[1727903949575,0.70928652,60854.0,60853.0,0.141228]
[1727903950027,0.72126755,60854.0,60853.0,0.140228]
[1727903950608,0.73526755,60854.0,60853.0,0.141228]
[1727903950803,0.59285755,60854.0,60853.0,0.141228]
[1727903951040,0.40028455,60854.0,60853.0,0.141228]
[1727903952547,1.43805355,60854.0,60853.0,0.141228]
[1727903952803,0.40028455,60854.0,60853.0,0.141228]
[1727903953021,1.24996455,60854.0,60853.0,0.141228]
[1727903953710,1.06102555,60854.0,60853.0,0.141228]
[1727903953946,0.89840052,60854.0,60853.0,0.141228]
[1727903954192,0.75184752,60854.0,60853.0,0.141228]
[1727903954437,0.53815752,60854.0,60853.0,0.141228]
[1727903955429,0.67283158,60854.0,60853.0,0.141228]
[1727903955663,0.9190622,60854.0,60853.0,0.141228]
[1727903955933,0.72743158,60854.0,60853.0,0.108362]
[1727903956708,0.72743158,60854.0,60840.0,0.24623062]
[1727903956709,0.339962,60841.0,60840.0,0.21378093]
[1727903957051,2.72215709,60841.0,60840.0,0.21378093]
[1727903957306,0.266368,60839.0,60838.0,0.000817]
[1727903957579,1.64706109,60839.0,60838.0,0.000817]
[1727903957865,1.56068963,60839.0,60838.0,0.000817]
[1727903958134,1.57784587,60839.0,60838.0,0.000817]
[1727903958399,1.4301576,60839.0,60838.0,0.000817]
[1727903958918,1.4301576,60839.0,60838.0,0.001817]
[1727903958919,1.4421576,60839.0,60838.0,0.001817]
[1727903960010,1.4541576,60839.0,60838.0,0.001817]
[1727903960922,1.40570161,60839.0,60838.0,0.001817]
[1727903962468,1.35239861,60839.0,60838.0,0.001817]
[1727903963132,0.45129275,60839.0,60838.0,0.001817]
[1727903963384,1.0313479,60839.0,60838.0,0.001817]
[1727903963599,1.09661225,60839.0,60838.0,0.001817]
[1727903964759,1.24657052,60839.0,60838.0,0.001817]
[1727903964977,1.12318034,60839.0,60838.0,0.001817]
[1727903965207,1.12318034,60839.0,60825.0,0.34523062]
[1727903965208,0.164387,60832.0,60825.0,0.24623062]
[1727903965446,0.37812889,60832.0,60825.0,0.24623062]
[1727903965677,2.3774679,60832.0,60825.0,0.24623062]
[1727903965928,2.3774679,60832.0,60816.0,0.24623062]
[1727903965929,2.3794679,60832.0,60816.0,0.24623062]
[1727903966188,2.59086032,60832.0,60816.0,0.24623062]
[1727903966415,2.86520871,60832.0,60816.0,0.24623062]
[1727903966657,2.89299167,60832.0,60816.0,0.24623062]
[1727903966886,3.26199167,60832.0,60816.0,0.24623062]
[1727903967106,0.264427,60817.0,60816.0,0.24623062]
[1727903967334,2.35464761,60817.0,60816.0,0.24623062]
[1727903967565,1.78707261,60817.0,60816.0,0.24623062]
[1727903967851,0.6121748,60817.0,60816.0,0.24623062]
[1727903968093,0.6121748,60817.0,60809.0,0.24623062]
[1727903968094,0.28943,60816.0,60809.0,0.24623062]
[1727903968332,0.35360808,60816.0,60809.0,0.24623062]
[1727903968580,0.3045231,60816.0,60809.0,0.24623062]
[1727903969529,0.3045231,60816.0,60805.0,0.0779]
[1727903969530,0.3065231,60816.0,60805.0,0.0779]
[1727903969770,0.9579361,60816.0,60805.0,0.0779]
[1727903969991,1.11186557,60816.0,60805.0,0.0779]
[1727903970214,1.11586557,60816.0,60804.0,0.0901]
[1727903970437,1.11286557,60816.0,60804.0,0.0901]
[1727903970656,1.1356529,60816.0,60804.0,0.0901]
[1727903970875,1.1516529,60816.0,60804.0,0.0901]
[1727903971092,1.1536529,60816.0,60804.0,0.0901]
[1727903971325,1.1636529,60816.0,60804.0,0.0901]
[1727903971542,1.1566529,60816.0,60804.0,0.0901]
[1727903972182,0.7694029,60816.0,60804.0,0.0901]
[1727903972697,0.6491939,60816.0,60804.0,0.0901]
[1727903973146,0.48726443,60816.0,60804.0,0.0901]
[1727903973367,0.4754771,60816.0,60804.0,0.0901]
[1727903973582,0.3185231,60816.0,60804.0,0.0901]
[1727903974026,0.3325231,60816.0,60804.0,0.0901]
[1727903974276,0.29543,60816.0,60813.0,0.0812]
[1727903974482,0.31147183,60816.0,60813.0,0.0812]
[1727903974708,0.32047183,60816.0,60813.0,0.0812]
[1727903976111,0.32647183,60816.0,60813.0,0.0812]
[1727903976335,0.31947183,60816.0,60813.0,0.0812]
[1727903976527,0.31347183,60816.0,60813.0,0.0812]
[1727903976778,0.34725684,60816.0,60813.0,0.0812]
[1727903977235,0.40519184,60816.0,60813.0,0.0812]
[1727903977457,0.27319184,60816.0,60815.0,0.097617]
[1727903977679,0.25345818,60816.0,60815.0,0.097617]
[1727903978138,0.16643,60816.0,60815.0,0.097617]
[1727903978370,0.02009241,60816.0,60815.0,0.179517]
[1727903979056,0.01809241,60816.0,60815.0,0.34395]
[1727903979277,0.01809241,60816.0,60815.0,0.179517]
[1727903979725,0.01709241,60816.0,60815.0,0.179517]
[1727903980017,0.02578025,60818.0,60817.0,0.336727]
[1727903980723,0.473234,60841.0,60824.0,0.0757]
[1727903980951,0.02577844,60830.0,60828.0,0.164396]
[1727903981197,0.02577844,60830.0,60829.0,0.1723]
[1727903981424,0.19017044,60830.0,60829.0,0.1723]
[1727903981867,0.02577844,60830.0,60829.0,0.1723]
[1727903982334,0.19017044,60830.0,60829.0,0.1723]
[1727903982797,0.02677844,60830.0,60829.0,0.1723]
[1727903983291,0.19017044,60830.0,60829.0,0.1723]
[1727903983530,0.19117044,60830.0,60829.0,0.1723]
[1727903984003,0.166392,60830.0,60829.0,0.1723]
[1727903984487,0.002,60830.0,60829.0,0.1723]
[1727903985589,0.003,60830.0,60829.0,0.1723]
[1727903986222,0.001,60830.0,60829.0,0.1723]
[1727903986860,0.002,60830.0,60829.0,0.1723]
[1727903987121,0.002,60830.0,60829.0,0.336695]
[1727903987606,0.001,60830.0,60829.0,0.336695]
[1727903987828,0.002,60830.0,60829.0,0.336695]
[1727903992231,0.01897065,60830.0,60829.0,0.336695]
[1727903993522,0.002,60830.0,60829.0,0.336695]
[1727903994186,0.24623062,60840.0,60839.0,0.164368]
[1727903994405,0.26317931,60840.0,60839.0,0.339968]
[1727903994854,0.01694869,60840.0,60839.0,0.339968]
[1727903995422,0.01794869,60840.0,60839.0,0.339968]
[1727903996053,0.01694869,60840.0,60839.0,0.339968]
[1727903996265,0.01794869,60840.0,60839.0,0.339968]
[1727903996495,0.01794869,60840.0,60839.0,0.341968]
[1727903996496,0.01894869,60840.0,60839.0,0.341968]
[1727903996711,0.01894869,60840.0,60839.0,0.339968]
[1727903996929,0.01894869,60840.0,60839.0,0.341968]
[1727903997150,0.01994869,60840.0,60839.0,0.341968]
[1727903998935,0.003,60840.0,60839.0,0.341968]
[1727903999623,0.01998902,60840.0,60839.0,0.341968]
[1727904004990,0.02162502,60840.0,60839.0,0.341968]
[1727904005901,0.22888964,60847.0,60846.0,0.164349]
[1727904006416,0.164333,60852.0,60848.0,0.164343]
[1727904007172,0.164333,60852.0,60849.0,0.16434]
[1727904007416,0.164331,60853.0,60849.0,0.164339]
[1727904007677,0.164333,60852.0,60849.0,0.164339]
[1727904007897,0.164333,60852.0,60850.0,0.0791]
[1727904008147,0.02576621,60853.0,60852.0,0.164333]
[1727904008664,0.001634,60854.0,60853.0,0.16433]
[1727904010653,0.001634,60854.0,60853.0,0.49299]
[1727904010905,0.002634,60854.0,60853.0,0.49999]
[1727904011160,0.003634,60854.0,60853.0,0.51099]
[1727904012947,0.103634,60854.0,60853.0,0.51099]
[1727904013438,0.103634,60854.0,60853.0,0.68169]
[1727904017883,0.12060268,60854.0,60853.0,0.68169]
[1727904018421,0.12060266,60854.0,60853.0,0.68169]
[1727904018910,0.1205846,60854.0,60853.0,0.68169]
[1727904019913,0.103634,60854.0,60853.0,0.68169]
[1727904020972,0.003634,60854.0,60853.0,1.09110733]
[1727904021221,0.001634,60857.0,60856.0,0.340522]
[1727904021470,0.001634,60857.0,60856.0,0.83234871]
[1727904021728,0.001634,60857.0,60856.0,0.83434871]
[1727904022429,0.24623062,60869.0,60868.0,0.164289]
[1727904022683,0.24623062,60869.0,60868.0,0.669069]
[1727904022916,0.001634,60870.0,60868.0,0.50478]
[1727904023155,0.001634,60870.0,60869.0,0.16757234]
[1727904023416,0.001634,60870.0,60869.0,0.57804234]
[1727904023648,0.001634,60870.0,60869.0,0.574757]
[1727904025344,0.001634,60870.0,60869.0,0.680857]
[1727904025690,0.001634,60870.0,60869.0,0.84604371]
[1727904025892,0.002634,60870.0,60869.0,0.86004371]
[1727904026135,0.001634,60870.0,60869.0,0.84604371]
[1727904026626,0.002634,60870.0,60869.0,0.84604371]
[1727904026863,0.001634,60870.0,60869.0,0.84604371]
[1727904027101,0.002634,60870.0,60869.0,0.86004371]
[1727904027361,0.002634,60870.0,60869.0,0.84604371]
[1727904027615,0.002634,60870.0,60869.0,0.86004371]
[1727904030406,0.002634,60870.0,60869.0,1.21127433]
[1727904030635,0.24786462,60886.0,60870.0,0.449184]
[1727904030867,0.24786462,60886.0,60870.0,0.94094071]
[1727904031587,0.24786462,60886.0,60876.0,0.166268]
[1727904031810,0.24786462,60886.0,60876.0,0.83409471]
[1727904033260,0.002636,60877.0,60876.0,0.84809471]
[1727904034193,0.002636,60877.0,60876.0,0.86209471]
[1727904034858,0.002636,60877.0,60876.0,0.96709471]
[1727904036903,0.002636,60877.0,60876.0,0.97125928]
[1727904037844,0.24786462,60886.0,60885.0,0.340844]
[1727904038069,0.24786462,60886.0,60885.0,0.83252071]
[1727904038290,0.001634,60886.0,60885.0,0.83252071]
[1727904038750,0.001634,60886.0,60885.0,0.83452071]
[1727904039202,0.002634,60886.0,60885.0,0.84852071]
[1727904040112,0.001634,60886.0,60885.0,0.83452071]
[1727904040344,0.001634,60886.0,60885.0,0.83252071]
[1727904040778,0.001634,60886.0,60885.0,0.84652071]
[1727904040993,0.001634,60886.0,60885.0,0.84852071]
[1727904041211,0.001634,60886.0,60885.0,0.85270864]
[1727904041879,0.001634,60886.0,60885.0,0.86670864]
[1727904045232,0.001634,60886.0,60885.0,0.86052071]
[1727904045674,0.001634,60886.0,60885.0,0.86252071]
[1727904048148,0.001634,60886.0,60885.0,0.86052071]
[1727904048375,0.001634,60886.0,60885.0,0.86252071]
[1727904050007,0.001634,60886.0,60885.0,0.84852071]
[1727904050234,0.001634,60886.0,60885.0,0.83452071]
[1727904050693,0.001634,60886.0,60885.0,0.84852071]
[1727904050912,0.001634,60886.0,60885.0,0.86252071]
[1727904057976,0.001634,60886.0,60885.0,0.86052071]
[1727904058201,0.001634,60886.0,60885.0,0.84852071]
[1727904058432,0.001634,60886.0,60885.0,0.83452071]
[1727904058658,0.03557774,60886.0,60885.0,0.84852071]
[1727904058916,0.01860587,60886.0,60885.0,0.86252071]
[1727904059174,0.01860587,60886.0,60885.0,0.84852071]
[1727904059618,0.01860587,60886.0,60885.0,0.83452071]
[1727904059831,0.01860587,60886.0,60885.0,0.84852071]
[1727904060048,0.01860587,60886.0,60885.0,0.83452071]
[1727904060505,0.01860587,60886.0,60885.0,0.86252071]
[1727904060974,0.01860587,60886.0,60885.0,0.84852071]
[1727904061410,0.01860587,60886.0,60885.0,0.86252071]
[1727904063862,0.01868182,60886.0,60885.0,0.86252071]
[1727904064303,0.03572296,60886.0,60885.0,0.86252071]
[1727904066995,0.001634,60886.0,60885.0,0.86252071]
[1727904067219,0.01868546,60886.0,60885.0,0.86252071]
[1727904067437,0.03573312,60886.0,60885.0,0.86252071]
[1727904067650,0.06984228,60886.0,60885.0,0.86252071]
[1727904068758,0.06984228,60886.0,60885.0,0.86052071]
[1727904069186,0.06984228,60886.0,60885.0,0.86252071]
[1727904069636,0.06984228,60886.0,60885.0,0.86052071]
[1727904069836,0.06984228,60886.0,60885.0,0.86252071]
[1727904070575,0.03573786,60886.0,60885.0,0.86252071]
[1727904072349,0.01868593,60886.0,60885.0,0.86252071]
[1727904072593,0.01868593,60886.0,60885.0,0.85752071]
[1727904074179,0.001634,60886.0,60885.0,0.85752071]
[1727904076218,0.001634,60886.0,60885.0,0.515734]
[1727904077140,0.001634,60886.0,60885.0,0.501734]
[1727904077557,0.001634,60886.0,60885.0,0.515734]
[1727904078036,0.001634,60886.0,60885.0,0.501734]
[1727904078522,0.001634,60886.0,60885.0,0.515734]
[1727904091451,0.001634,60886.0,60885.0,0.517368]
[1727904101403,0.001634,60886.0,60885.0,0.84059862]
[1727904101647,0.001634,60886.0,60885.0,0.95765471]
[1727904102763,0.001634,60886.0,60885.0,0.95565471]
[1727904103642,0.001634,60886.0,60885.0,0.94165471]
[1727904104131,0.001634,60886.0,60885.0,0.92765471]
[1727904104348,0.001634,60886.0,60885.0,0.94165471]
[1727904104566,0.001634,60886.0,60885.0,0.95065471]
[1727904104786,0.001634,60886.0,60885.0,0.94165471]
[1727904105463,0.001634,60886.0,60885.0,0.95565471]
[1727904105672,0.001634,60886.0,60885.0,0.94165471]
[1727904105900,0.001634,60886.0,60885.0,0.94091437]
[1727904106122,0.001634,60886.0,60885.0,0.95065471]
[1727904106770,0.001634,60886.0,60885.0,0.93665471]
[1727904107229,0.001634,60886.0,60885.0,0.95065471]
[1727904113870,0.001634,60886.0,60885.0,0.95265471]
[1727904114585,0.001634,60886.0,60885.0,0.517368]
[1727904118078,0.02738118,60886.0,60885.0,0.517368]
[1727904121726,0.001634,60886.0,60885.0,0.517368]
[1727904126473,0.001634,60886.0,60885.0,0.599368]
[1727904126692,0.001634,60886.0,60885.0,0.597368]
[1727904126911,0.001634,60886.0,60885.0,0.85675471]
[1727904131386,0.001634,60886.0,60885.0,0.8610324]
[1727904133890,0.001634,60886.0,60885.0,0.7648324]
[1727904135988,0.001634,60886.0,60885.0,0.597368]
[1727904140054,0.001634,60886.0,60885.0,0.76055471]
[1727904142079,0.001634,60886.0,60885.0,0.76255471]
[1727904142566,0.001634,60886.0,60885.0,0.597368]
[1727904146102,0.001634,60886.0,60885.0,0.517368]
[1727904152598,0.258875,60886.0,60885.0,0.358124]
[1727904153084,0.38758221,60886.0,60885.0,0.358124]
[1727904153326,0.73457541,60886.0,60885.0,0.358124]
[1727904153593,0.63838242,60886.0,60885.0,0.330124]
[1727904153857,0.63838242,60886.0,60877.0,0.001634]
[1727904153858,0.276462,60878.0,60877.0,0.001634]
[1727904154130,0.28690003,60876.0,60875.0,0.24623062]
[1727904154379,0.164284,60870.0,60860.0,0.24623062]
[1727904154659,0.28691603,60870.0,60860.0,0.24623062]
[1727904154931,0.34481061,60870.0,60869.0,0.330204]
[1727904155459,0.28694003,60861.0,60860.0,0.24623062]
[1727904155977,0.28694003,60861.0,60860.0,0.32862]
[1727904155978,0.29227255,60861.0,60860.0,0.32862]
[1727904156942,0.29227255,60861.0,60860.0,0.33862]
[1727904158189,0.29227255,60861.0,60860.0,0.34662]
[1727904158418,0.19540278,60861.0,60860.0,0.34662]
[1727904159312,0.03109478,60861.0,60860.0,0.34662]
[1727904160036,0.03109478,60861.0,60860.0,0.510931]
[1727904160433,0.02576226,60861.0,60860.0,0.510931]
[1727904161150,0.02576226,60861.0,60860.0,0.494565]
[1727904161396,0.02676226,60861.0,60860.0,0.522565]
[1727904165910,0.02676226,60861.0,60860.0,0.693665]
[1727904165911,0.001,60861.0,60860.0,0.693665]
[1727904166624,0.001,60861.0,60860.0,0.85685171]
[1727904167076,0.001,60861.0,60860.0,0.85885171]
[1727904167221,0.001,60861.0,60860.0,0.85685171]
[1727904167646,0.001,60861.0,60860.0,0.84285171]
[1727904167822,0.001,60861.0,60860.0,0.85885171]
[1727904168105,0.24623062,60869.0,60860.0,0.68054071]
[1727904168326,0.24623062,60869.0,60868.0,0.164289]
[1727904168536,0.24623062,60869.0,60868.0,0.492869]
[1727904168756,0.164266,60877.0,60868.0,0.492869]
[1727904168757,0.164266,60877.0,60871.0,0.164281]
[1727904168977,0.164266,60877.0,60872.0,0.32856]
[1727904169190,0.0257553,60876.0,60872.0,0.492838]
[1727904170903,0.0257553,60876.0,60872.0,0.32856]
[1727904171114,0.0257553,60876.0,60872.0,0.499838]
[1727904171328,0.0257553,60876.0,60873.0,0.164276]
[1727904171543,0.0257553,60876.0,60875.0,0.164271]
[1727904171777,0.0257553,60876.0,60875.0,0.492811]
[1727904171985,0.0257553,60876.0,60875.0,0.32854]
[1727904172412,0.0257553,60876.0,60875.0,0.492811]
[1727904172631,0.0257553,60876.0,60875.0,0.32854]
[1727904172868,0.0265723,60876.0,60875.0,0.32854]
[1727904173093,0.0265723,60876.0,60875.0,0.34154]